[Event "95th Caplin Hastings Congress"]
[Site "Hastings"]
[Date "2019.12.29"]
[Round "2.7"]
[White "Petrov, Martin"]
[Black "Bates, Richard A"]
[Result "1/2-1/2"]
[ECO "B90"]
[WhiteElo "2497"]
[BlackElo "2342"]
[Annotator "ChessBase"]
[PlyCount "100"]
[EventDate "2019.12.28"]
[EventType "swiss"]
[EventCountry "ENG"]
[SourceTitle "playchess.com"]
[Source "ChessBase"]
[SourceQuality "1"]
[TimeControl "40/6600+30:3000+30"]

1. e4 {[%emt 0:17:09]} c5 {[%emt 0:10:13]} 2. Nf3 {[%emt 0:00:08]} d6 {[%emt 0:00:12]} 3. d4 {[%emt 0:00:20]} cxd4 {[%emt 0:00:07]} 4. Nxd4 {[%emt 0:00:06]} Nf6 {[%emt 0:00:54]} 5. Nc3 {[%emt 0:00:07]} a6 {[%emt 0:00:08]} 6. Be3 {[%emt 0:00:07]} e5 {[%emt 0:00:52]} 7. Nb3 {[%emt 0:00:06]} Be6 {[%emt 0:01:08]} 8. h3 {[%emt 0:00:07]} Be7 {[%emt 0:08:29]} 9. f4 {[%emt 0:00:13]} exf4 {[%emt 0:10:18]} 10. Bxf4 {[%emt 0:00:05]} Nc6 {[%emt 0:01:56]} 11. Qe2 {[%emt 0:00:09]} Nd7 {[%emt 0:06:42]} 12. O-O-O {[%emt 0:00:25]} Nce5 {[%emt 0:04:48]} 13. Nd4 {[%emt 0:04:19]} O-O {[%emt 0:01:45]} 14. Qe3 {[%emt 0:07:59]} Rc8 {[%emt 0:09:49]} 15. Kb1 {[%emt 0:05:55]} Qa5 {[%emt 0:05:44]} 16. a3 {[%emt 0:02:53]} Rfe8 {[%emt 0:10:37]} 17. g4 {[%emt 0:07:17]} Bf8 {[%emt 0:03:44]} 18. Qe1 {[%emt 0:31:18]} Nc5 {[%emt 0:09:58]} 19. Nxe6 {[%emt 0:09:26]} fxe6 {[%emt 0:05:21]} 20. Bxe5 {[%emt 0:05:15]} dxe5 {[%emt 0:02:05]} 21. Rh2 {[%emt 0:00:17]} Rc6 {[%emt 0:03:27]} 22. Ka2 {[%emt 0:07:11]} Rec8 {[%emt 0:06:39]} 23. Qe3 {[%emt 0:11:43]} b5 {[%emt 0:04:51]} 24. Nb1 {[%emt 0:05:57]} b4 {[%emt 0:02:30]} 25. b3 {[%emt 0:01:02]} Na4 {[%emt 0:05:27]} 26. bxa4 {[%emt 0:01:30]} Qxa4 {[%emt 0:00:10]} 27. Rd3 {[%emt 0:01:53]} Rxc2+ {[%emt 0:02:12]} 28. Rxc2 {[%emt 0:00:01]} Qxc2+ {[%emt 0:01:00]} 29. Ka1 {[%emt 0:00:01]} b3 {[%emt 0:01:03]} 30. Rd2 {[%emt 0:01:04]} Bxa3 {[%emt 0:00:32]} 31. Rxc2 {[%emt 0:00:44]} bxc2 {[%emt 0:00:04]} 32. Qxa3 {[%emt 0:00:40]} c1=Q {[%emt 0:00:08]} 33. Qxa6 {[%emt 0:00:23]} Rb8 {[%emt 0:00:59]} 34. Bb5 {[%emt 0:00:39]} Qc5 {[%emt 0:00:32]} 35. Na3 {[%emt 0:00:27]} Rd8 {[%emt 0:00:24]} 36. Qxe6+ {[%emt 0:00:22]} Kh8 {[%emt 0:00:08]} 37. Qb3 {[%emt 0:00:20]} Rd2 {[%emt 0:00:48]} 38. Nb1 {[%emt 0:00:45]} Rc2 {[%emt 0:00:47]} 39. Qd3 {[%emt 0:00:36]} Qa7+ {[%emt 0:01:32]} 40. Na3 {[%emt 0:00:21]} Qg1+ {[%emt 0:00:14]} 41. Nb1 {[%emt 0:02:42]} Qd4+ {[%emt 0:14:38]} 42. Qxd4 {[%emt 0:00:13]} exd4 {[%emt 0:00:03]} 43. e5 {[%emt 0:08:18]} Rc5 {[%emt 0:00:23]} 44. Bf1 {[%emt 0:00:38]} Rxe5 {[%emt 0:00:14]} 45. Kb2 {[%emt 0:01:44]} Re3 {[%emt 0:05:58]} 46. Nd2 {[%emt 0:03:12]} g6 {[%emt 0:00:10]} 47. Nb3 {[%emt 0:03:24]} Re1 {[%emt 0:01:33]} 48. Nd2 {[%emt 0:01:41]} Kg7 {[%emt 0:00:47]} 49. Kc2 {[%emt 0:02:38]} Re3 {[%emt 0:00:30]} 50. Nc4 {[%emt 0:02:47]} Re1 {[%emt 0:04:53]} 1/2-1/2

[Event "95th Caplin Hastings Congress"]
[Site "Hastings"]
[Date "2019.12.29"]
[Round "2.9"]
[White "Swayams, Mishra"]
[Black "Grieve, Harry"]
[Result "1-0"]
[ECO "A81"]
[WhiteElo "2479"]
[BlackElo "2299"]
[Annotator "ChessBase"]
[PlyCount "87"]
[EventDate "2019.12.28"]
[EventType "swiss"]
[EventCountry "ENG"]
[SourceTitle "playchess.com"]
[Source "ChessBase"]
[SourceQuality "1"]
[TimeControl "40/6600+30:3000+30"]

1. d4 {[%emt 0:17:16]} f5 {[%emt 0:09:41]} 2. g3 {[%emt 0:03:26]} Nf6 {[%emt 0:00:13]} 3. Bg2 {[%emt 0:00:05]} g6 {[%emt 0:00:28]} 4. c3 {[%emt 0:01:07]} Bg7 {[%emt 0:00:13]} 5. Qb3 {[%emt 0:00:11]} Nc6 {[%emt 0:00:10]} 6. Nd2 {[%emt 0:01:03]} d5 {[%emt 0:00:38]} 7. Ndf3 {[%emt 0:07:00]} e6 {[%emt 0:08:03]} 8. h4 {[%emt 0:01:49]} a5 {[%emt 0:03:13]} 9. a4 {[%emt 0:02:12]} b6 {[%emt 0:02:43]} 10. Nh3 {[%emt 0:00:06]} O-O {[%emt 0:07:48]} 11. Nf4 {[%emt 0:00:36]} Ne4 {[%emt 0:00:35]} 12. Be3 {[%emt 0:05:22]} Re8 {[%emt 0:04:46]} 13. Ng5 {[%emt 0:06:45]} Qd7 {[%emt 0:05:11]} 14. Nxe4 {[%emt 0:06:49]} fxe4 {[%emt 0:04:16]} 15. f3 {[%emt 0:01:15]} exf3 {[%emt 0:02:04]} 16. Bxf3 {[%emt 0:01:09]} Ba6 {[%emt 0:05:30]} 17. O-O-O {[%emt 0:08:37]} Rab8 {[%emt 0:05:17]} 18. Qc2 {[%emt 0:02:27]} Bf8 {[%emt 0:12:00]} 19. h5 {[%emt 0:07:31]} g5 {[%emt 0:01:34]} 20. Nh3 {[%emt 0:00:28]} h6 {[%emt 0:02:45]} 21. Nf2 {[%emt 0:02:13]} Qh7 {[%emt 0:13:08]} 22. Qg6+ {[%emt 0:00:12]} Qxg6 {[%emt 0:08:50]} 23. hxg6 {[%emt 0:00:02]} Kg7 {[%emt 0:00:09]} 24. Rh2 {[%emt 0:05:33]} Ne7 {[%emt 0:05:01]} 25. Ng4 {[%emt 0:02:21]} Nf5 {[%emt 0:02:55]} 26. Rdh1 {[%emt 0:06:58]} Bd6 {[%emt 0:03:15]} 27. Bxg5 {[%emt 0:02:40]} hxg5 {[%emt 0:04:24]} 28. Rh7+ {[%emt 0:00:10]} Kxg6 {[%emt 0:00:08]} 29. e4 {[%emt 0:00:38]} Ng7 {[%emt 0:02:53]} 30. R1h6+ {[%emt 0:06:32]} Kf7 {[%emt 0:00:01]} 31. Rf6+ {[%emt 0:02:26]} Kg8 {[%emt 0:00:02]} 32. Rh3 {[%emt 0:07:56]} Bf1 {[%emt 0:07:33]} 33. Rh1 {[%emt 0:00:23]} Bxg3 {[%emt 0:00:30]} 34. Nh6+ {[%emt 0:01:14]} Kh7 {[%emt 0:00:02]} 35. Nf7+ {[%emt 0:00:15]} Nh5 {[%emt 0:01:00]} 36. Bxh5 {[%emt 0:01:21]} Bg2 {[%emt 0:00:30]} 37. Nxg5+ {[%emt 0:05:18]} Kh8 {[%emt 0:00:30]} 38. Rg1 {[%emt 0:00:35]} Rg8 {[%emt 0:00:30]} 39. Rh6+ {[%emt 0:01:27]} Kg7 {[%emt 0:00:01]} 40. Rg6+ {[%emt 0:00:18]} Kh8 {[%emt 0:00:47]} 41. Nf7+ {[%emt 0:53:13]} Kh7 {[%emt 0:50:08]} 42. Rxg2 {[%emt 0:01:13]} Rxg6 {[%emt 0:00:45]} 43. Bxg6+ {[%emt 0:00:04]} Kxg6 {[%emt 0:00:09]} 44. Ne5+ {[%emt 0:00:03]} 1-0

[Event "95th Caplin Hastings Congress"]
[Site "Hastings"]
[Date "2019.12.29"]
[Round "2.11"]
[White "Williams, Simon K"]
[Black "Ratnesan, Ranesh"]
[Result "1-0"]
[ECO "D10"]
[WhiteElo "2461"]
[BlackElo "2213"]
[Annotator "ChessBase"]
[PlyCount "57"]
[EventDate "2019.12.28"]
[EventType "swiss"]
[EventCountry "ENG"]
[SourceTitle "playchess.com"]
[Source "ChessBase"]
[SourceQuality "1"]
[TimeControl "40/6600+30:3000+30"]

1. d4 {[%emt 0:09:45]} d5 {[%emt 0:09:49]} 2. c4 {[%emt 0:00:34]} c6 {[%emt 0:00:10]} 3. cxd5 {[%emt 0:00:26]} cxd5 {[%emt 0:00:12]} 4. Nc3 {[%emt 0:00:16]} Nf6 {[%emt 0:00:17]} 5. Bf4 {[%emt 0:00:25]} Nc6 {[%emt 0:00:23]} 6. e3 {[%emt 0:00:14]} Bf5 {[%emt 0:00:45]} 7. Qb3 {[%emt 0:00:38]} Na5 {[%emt 0:00:36]} 8. Qa4+ {[%emt 0:00:19]} Bd7 {[%emt 0:00:24]} 9. Qc2 {[%emt 0:00:31]} Rc8 {[%emt 0:03:04]} 10. Bd3 {[%emt 0:01:14]} e6 {[%emt 0:00:41]} 11. Nf3 {[%emt 0:00:36]} Be7 {[%emt 0:00:55]} 12. O-O {[%emt 0:00:37]} O-O {[%emt 0:01:11]} 13. Ne5 {[%emt 0:02:27]} Be8 {[%emt 0:05:56]} 14. Qe2 {[%emt 0:02:16]} a6 {[%emt 0:05:46]} 15. Qf3 {[%emt 0:10:43]} b5 {[%emt 0:11:15]} 16. Qh3 {[%emt 0:01:29]} b4 {[%emt 0:05:35]} 17. Ng4 {[%emt 0:11:22]} g6 {[%emt 0:09:46]} 18. Nh6+ {[%emt 0:03:47]} Kg7 {[%emt 0:01:44]} 19. Ne2 {[%emt 0:00:24]} Bb5 {[%emt 0:02:26]} 20. Bxb5 {[%emt 0:00:37]} axb5 {[%emt 0:00:07]} 21. Be5 {[%emt 0:07:45]} Rc2 {[%emt 0:18:38]} 22. Nf4 {[%emt 0:05:59]} Rc6 {[%emt 0:30:49]} 23. Rac1 {[%emt 0:15:02]} Kh8 {[%emt 0:06:44]} 24. Ng4 {[%emt 0:08:01]} Kg8 {[%emt 0:01:43]} 25. Nh6+ {[%emt 0:07:48]} Kh8 {[%emt 0:00:05]} 26. b3 {[%emt 0:00:09]} Rc3 {[%emt 0:01:05]} 27. Ne2 {[%emt 0:02:01]} Rxc1 {[%emt 0:00:34]} 28. Rxc1 {[%emt 0:00:04]} Bd6 {[%emt 0:01:06]} 29. Rc8 {[%emt 0:01:02]} 1-0

[Event "95th Caplin Hastings Congress"]
[Site "Hastings"]
[Date "2019.12.29"]
[Round "2.13"]
[White "Flear, Glenn C"]
[Black "Fishbein, Mitch"]
[Result "1/2-1/2"]
[ECO "E11"]
[WhiteElo "2440"]
[BlackElo "2151"]
[Annotator "NA"]
[PlyCount "85"]
[EventDate "2019.12.28"]
[EventType "swiss"]
[EventCountry "ENG"]
[SourceTitle "playchess.com"]
[Source "ChessBase"]
[SourceQuality "1"]
[TimeControl "40/6600+30:3000+30"]

1. d4 {[%emt 0:09:33]} Nf6 {[%emt 0:09:44]} 2. c4 {[%emt 0:00:08]} e6 {[%emt 0:00:09]} 3. Nf3 {[%emt 0:00:44]} Bb4+ {[%emt 0:00:58]} 4. Nbd2 {[%emt 0:02:18]} O-O {[%emt 0:02:24]} 5. a3 {[%emt 0:04:21]} Be7 {[%emt 0:00:36]} 6. g3 {[%emt 0:02:10]} d5 {[%emt 0:03:32]} 7. Bg2 {[%emt 0:01:50]} Nbd7 {[%emt 0:05:01]} 8. O-O {[%emt 0:02:16]} c6 {[%emt 0:06:24]} 9. Qc2 {[%emt 0:01:21]} b6 {[%emt 0:11:57]} 10. e4 {[%emt 0:05:31]} Bb7 {[%emt 0:03:51]} 11. e5 {[%emt 0:07:34]} Ne8 {[%emt 0:01:17]} 12. cxd5 {[%emt 0:00:27]} exd5 {[%emt 0:15:05]} 13. Re1 {[%emt 0:01:53]} Nc7 {[%emt 0:01:29]} 14. Nf1 {[%emt 0:03:54]} Ne6 {[%emt 0:03:29]} 15. Ne3 {[%emt 0:01:57]} g6 {[%emt 0:02:13]} 16. Bh3 {[%emt 0:06:42]} c5 {[%emt 0:03:31]} 17. Ng2 {[%emt 0:02:44]} Re8 {[%emt 0:21:39]} 18. Bxe6 {[%emt 0:06:36]} fxe6 {[%emt 0:00:06]} 19. Nf4 {[%emt 0:01:12]} Nf8 {[%emt 0:00:24]} 20. h4 {[%emt 0:00:59]} Qd7 {[%emt 0:02:49]} 21. Be3 {[%emt 0:01:31]} c4 {[%emt 0:03:34]} 22. h5 {[%emt 0:11:06]} g5 {[%emt 0:02:00]} 23. Ng2 {[%emt 0:00:29]} h6 {[%emt 0:00:22]} 24. Nh2 {[%emt 0:00:29]} Bd8 {[%emt 0:01:15]} 25. Ng4 {[%emt 0:00:36]} Qh7 {[%emt 0:01:31]} 26. Qxh7+ {[%emt 0:02:32]} Kxh7 {[%emt 0:00:24]} 27. f4 {[%emt 0:01:02]} Nd7 {[%emt 0:02:12]} 28. Rf1 {[%emt 0:03:53]} Kg7 {[%emt 0:03:04]} 29. Rf2 {[%emt 0:02:26]} Be7 {[%emt 0:01:04]} 30. Raf1 {[%emt 0:09:04]} Rf8 {[%emt 0:01:04]} 31. Ne1 {[%emt 0:01:11]} c3 {[%emt 0:02:43]} 32. fxg5 {[%emt 0:04:36]} hxg5 {[%emt 0:01:16]} 33. bxc3 {[%emt 0:00:41]} Ba6 {[%emt 0:00:44]} 34. Rxf8 {[%emt 0:00:11]} Rxf8 {[%emt 0:00:57]} 35. Rxf8 {[%emt 0:00:58]} Nxf8 {[%emt 0:00:10]} 36. Kf2 {[%emt 0:01:25]} Bb5 {[%emt 0:05:16]} 37. Nh2 {[%emt 0:01:48]} Nh7 {[%emt 0:00:00]} 38. Bc1 {[%emt 0:01:43]} a5 {[%emt 0:02:08]} 39. g4 {[%emt 0:01:14]} Bc4 {[%emt 0:00:00]} 40. Nhf3 {[%emt 0:03:45]} Kh6 {[%emt 0:02:01]} 41. Nd2 {[%emt 0:54:15]} b5 {[%emt 0:07:55]} 42. Ke3 {[%emt 0:00:00]} Nf8 {[%emt 0:01:36]} 43. Nef3 {[%emt 0:08:58]} 1/2-1/2

[Event "95th Caplin Hastings Congress"]
[Site "Hastings"]
[Date "2019.12.29"]
[Round "2.14"]
[White "Hebden, Mark L"]
[Black "Thompson, Ian D"]
[Result "1-0"]
[ECO "D30"]
[WhiteElo "2433"]
[BlackElo "2141"]
[Annotator "NA RC"]
[PlyCount "91"]
[EventDate "2019.12.28"]
[EventType "swiss"]
[EventCountry "ENG"]
[SourceTitle "playchess.com"]
[Source "ChessBase"]
[SourceQuality "1"]
[TimeControl "40/6600+30:3000+30"]

1. d4 {[%emt 0:09:39]} d5 {[%emt 0:09:42]} 2. Nf3 {[%emt 0:01:11]} Nf6 {[%emt 0:00:14]} 3. c4 {[%emt 0:00:27]} e6 {[%emt 0:00:20]} 4. e3 {[%emt 0:00:47]} c5 {[%emt 0:03:07]} 5. cxd5 {[%emt 0:00:13]} exd5 {[%emt 0:00:12]} 6. Bb5+ {[%emt 0:00:06]} Bd7 {[%emt 0:04:52]} 7. Bxd7+ {[%emt 0:00:10]} Nbxd7 {[%emt 0:01:42]} 8. dxc5 {[%emt 0:00:08]} Bxc5 {[%emt 0:00:58]} 9. O-O {[%emt 0:00:07]} O-O {[%emt 0:00:41]} 10. Nc3 {[%emt 0:00:04]} Nb6 {[%emt 0:01:16]} 11. b3 {[%emt 0:00:09]} Qe7 {[%emt 0:05:19]} 12. Bb2 {[%emt 0:00:31]} Ba3 {[%emt 0:05:33]} 13. Bxa3 {[%emt 0:04:06]} Qxa3 {[%emt 0:00:07]} 14. Qd4 {[%emt 0:02:15]} Rfc8 {[%emt 0:13:20]} 15. Nb5 {[%emt 0:04:38]} Qc5 {[%emt 0:03:17]} 16. Qxc5 {[%emt 0:00:24]} Rxc5 {[%emt 0:00:07]} 17. Nd6 {[%emt 0:00:25]} Rc7 {[%emt 0:01:42]} 18. Rac1 {[%emt 0:01:21]} Rd7 {[%emt 0:01:43]} 19. Nf5 {[%emt 0:00:30]} g6 {[%emt 0:03:21]} 20. N5d4 {[%emt 0:07:56]} Rc8 {[%emt 0:04:11]} 21. Rxc8+ {[%emt 0:00:35]} Nxc8 {[%emt 0:00:06]} 22. Rc1 {[%emt 0:01:20]} Nd6 {[%emt 0:01:54]} 23. Kf1 {[%emt 0:02:04]} a6 {[%emt 0:03:46]} 24. Ne5 {[%emt 0:01:59]} Re7 {[%emt 0:01:16]} 25. Nd3 {[%emt 0:00:33]} Nde8 {[%emt 0:04:44]} 26. Rc8 {[%emt 0:01:59]} Rc7 {[%emt 0:02:13]} 27. Rxc7 {[%emt 0:10:13]} Nxc7 {[%emt 0:00:07]} 28. Nc5 {[%emt 0:00:06]} b6 {[%emt 0:00:24]} 29. Na4 {[%emt 0:00:11]} Nd7 {[%emt 0:01:00]} 30. Ke2 {[%emt 0:01:21]} f6 {[%emt 0:03:12]} 31. g4 {[%emt 0:02:18]} Kf7 {[%emt 0:01:49]} 32. h4 {[%emt 0:00:19]} h5 {[%emt 0:03:23]} 33. gxh5 {[%emt 0:01:25]} gxh5 {[%emt 0:00:06]} 34. Nc3 {[%emt 0:00:50]} Ne5 {[%emt 0:02:42]} 35. f4 {[%emt 0:01:47]} Ng6 {[%emt 0:02:56]} 36. Kf2 {[%emt 0:00:19]} Ne7 {[%emt 0:04:59]} 37. f5 {[%emt 0:03:00]} Ne8 {[%emt 0:00:55]} 38. Kf3 {[%emt 0:00:59]} Nd6 {[%emt 0:03:29]} 39. Kf4 {[%emt 0:00:14]} b5 {[%emt 0:03:35]} 40. a3 {[%emt 0:07:17]} Ke8 {[%emt 0:08:29]} 41. Nce2 {[%emt 1:00:49]} Ne4 {[%emt 0:51:16]} 42. Ne6 {[%emt 0:00:24]} Kd7 {[%emt 0:02:38]} 43. N2d4 {[%emt 0:01:36]} Kd6 {[%emt 0:04:39]} 44. Ng7 {[%emt 0:01:21]} Nf2 {[%emt 0:00:31]} 45. Ne8+ {[%emt 0:00:18]} Kc5 {[%emt 0:02:37]} 46. Nxf6 {[%emt 0:00:21]} 1-0

[Event "95th Caplin Hastings Congress"]
[Site "Hastings"]
[Date "2019.12.29"]
[Round "2.15"]
[White "Unnikrishnan, Midhun P"]
[Black "Lalic, Bogdan"]
[Result "1/2-1/2"]
[ECO "A37"]
[WhiteElo "2135"]
[BlackElo "2414"]
[Annotator "NA"]
[PlyCount "56"]
[EventDate "2019.12.28"]
[EventType "swiss"]
[EventCountry "ENG"]
[SourceTitle "playchess.com"]
[Source "ChessBase"]
[SourceQuality "1"]
[TimeControl "40/6600+30:3000+30"]

1. Nf3 {[%emt 0:12:19]} c5 {[%emt 0:09:41]} 2. c4 {[%emt 0:01:15]} Nc6 {[%emt 0:00:10]} 3. g3 {[%emt 0:00:15]} g6 {[%emt 0:00:11]} 4. Bg2 {[%emt 0:00:25]} Bg7 {[%emt 0:00:08]} 5. Nc3 {[%emt 0:00:38]} d6 {[%emt 0:00:08]} 6. O-O {[%emt 0:00:43]} Qd7 {[%emt 0:00:12]} 7. e3 {[%emt 0:03:01]} Bxc3 {[%emt 0:00:10]} 8. bxc3 {[%emt 0:02:12]} b6 {[%emt 0:00:12]} 9. e4 {[%emt 0:01:48]} Bb7 {[%emt 0:00:29]} 10. d3 {[%emt 0:03:07]} O-O-O {[%emt 0:00:38]} 11. Ne1 {[%emt 0:09:52]} f5 {[%emt 0:01:06]} 12. Nc2 {[%emt 0:07:41]} fxe4 {[%emt 0:00:37]} 13. Bxe4 {[%emt 0:04:16]} Nf6 {[%emt 0:00:38]} 14. Bg2 {[%emt 0:00:26]} Na5 {[%emt 0:06:45]} 15. Bg5 {[%emt 0:15:59]} Bxg2 {[%emt 0:00:24]} 16. Kxg2 {[%emt 0:00:05]} d5 {[%emt 0:04:36]} 17. Qf3 {[%emt 0:02:18]} Qc6 {[%emt 0:07:05]} 18. Rfe1 {[%emt 0:16:36]} dxc4 {[%emt 0:00:34]} 19. Qxc6+ {[%emt 0:02:09]} Nxc6 {[%emt 0:00:02]} 20. dxc4 {[%emt 0:00:10]} Rhf8 {[%emt 0:04:27]} 21. Re6 {[%emt 0:13:07]} Kb7 {[%emt 0:01:15]} 22. Rae1 {[%emt 0:01:19]} Rf7 {[%emt 0:00:23]} 23. R1e2 {[%emt 0:02:26]} Rd3 {[%emt 0:02:19]} 24. R2e3 {[%emt 0:01:16]} Rd2 {[%emt 0:06:13]} 25. Re2 {[%emt 0:00:51]} Rxe2 {[%emt 0:00:07]} 26. Rxe2 {[%emt 0:00:02]} Ng4 {[%emt 0:15:05]} 27. Bf4 {[%emt 0:00:32]} e5 {[%emt 0:03:01]} 28. Bg5 {[%emt 0:01:03]} h6 {[%emt 0:04:50]} 1/2-1/2

[Event "95th Caplin Hastings Congress"]
[Site "Hastings"]
[Date "2019.12.29"]
[Round "2.16"]
[White "Murphy, Conor E"]
[Black "Price, Gwilym"]
[Result "1/2-1/2"]
[ECO "C41"]
[WhiteElo "2407"]
[BlackElo "2110"]
[Annotator "NA"]
[PlyCount "62"]
[EventDate "2019.12.28"]
[EventType "swiss"]
[EventCountry "ENG"]
[SourceTitle "playchess.com"]
[Source "ChessBase"]
[SourceQuality "1"]
[TimeControl "40/6600+30:3000+30"]

1. e4 {[%emt 0:14:23]} d6 {[%emt 0:09:44]} 2. d4 {[%emt 0:00:30]} Nf6 {[%emt 0:00:05]} 3. Nc3 {[%emt 0:00:17]} e5 {[%emt 0:00:04]} 4. Nf3 {[%emt 0:01:04]} Nbd7 {[%emt 0:00:07]} 5. Bc4 {[%emt 0:00:47]} Be7 {[%emt 0:00:04]} 6. a4 {[%emt 0:00:44]} O-O {[%emt 0:00:41]} 7. O-O {[%emt 0:00:26]} c6 {[%emt 0:00:22]} 8. h3 {[%emt 0:00:53]} b6 {[%emt 0:02:25]} 9. Re1 {[%emt 0:02:22]} a6 {[%emt 0:04:47]} 10. Ba2 {[%emt 0:07:31]} Qc7 {[%emt 0:02:01]} 11. Qe2 {[%emt 0:06:14]} Bb7 {[%emt 0:03:31]} 12. Bd2 {[%emt 0:08:45]} b5 {[%emt 0:08:03]} 13. axb5 {[%emt 0:04:56]} axb5 {[%emt 0:03:03]} 14. b4 {[%emt 0:02:06]} Nb6 {[%emt 0:09:58]} 15. Bb3 {[%emt 0:03:43]} Nfd7 {[%emt 0:02:42]} 16. Rxa8 {[%emt 0:07:21]} Rxa8 {[%emt 0:05:39]} 17. d5 {[%emt 0:10:46]} Na4 {[%emt 0:07:55]} 18. Nxa4 {[%emt 0:11:22]} bxa4 {[%emt 0:00:12]} 19. dxc6 {[%emt 0:01:16]} Qxc6 {[%emt 0:07:34]} 20. Bd5 {[%emt 0:03:54]} Qc7 {[%emt 0:00:52]} 21. Qb5 {[%emt 0:07:00]} Bxd5 {[%emt 0:06:32]} 22. exd5 {[%emt 0:00:22]} a3 {[%emt 0:07:39]} 23. Ra1 {[%emt 0:07:29]} e4 {[%emt 0:08:10]} 24. Qc6 {[%emt 0:03:11]} Qxc6 {[%emt 0:11:19]} 25. dxc6 {[%emt 0:00:05]} Bf6 {[%emt 0:00:19]} 26. c3 {[%emt 0:04:57]} exf3 {[%emt 0:03:20]} 27. cxd7 {[%emt 0:00:05]} Kf8 {[%emt 0:01:01]} 28. Be3 {[%emt 0:04:26]} Ke7 {[%emt 0:01:05]} 29. Bb6 {[%emt 0:00:48]} Kxd7 {[%emt 0:02:12]} 30. Ba5 {[%emt 0:00:07]} Bxc3 {[%emt 0:01:01]} 31. Rxa3 {[%emt 0:00:08]} Rc8 {[%emt 0:00:17]} 1/2-1/2

[Event "95th Caplin Hastings Congress"]
[Site "Hastings"]
[Date "2019.12.29"]
[Round "2.17"]
[White "Boino, Claudio"]
[Black "Petrov, Vladimir Sergeev"]
[Result "0-1"]
[ECO "E12"]
[WhiteElo "2146"]
[BlackElo "2355"]
[Annotator "NA"]
[PlyCount "82"]
[EventDate "2019.12.28"]
[EventType "swiss"]
[EventCountry "ENG"]
[SourceTitle "playchess.com"]
[Source "ChessBase"]
[SourceQuality "1"]
[TimeControl "40/6600+30:3000+30"]

1. d4 {[%emt 0:09:31]} Nf6 {[%emt 0:17:51]} 2. Nf3 {[%emt 0:00:03]} e6 {[%emt 0:00:07]} 3. c4 {[%emt 0:00:08]} b6 {[%emt 0:00:10]} 4. a3 {[%emt 0:00:10]} Bb7 {[%emt 0:01:18]} 5. Nc3 {[%emt 0:00:10]} d5 {[%emt 0:00:19]} 6. cxd5 {[%emt 0:00:10]} Nxd5 {[%emt 0:00:07]} 7. Qc2 {[%emt 0:00:10]} Nd7 {[%emt 0:01:59]} 8. e4 {[%emt 0:00:14]} Nxc3 {[%emt 0:00:05]} 9. bxc3 {[%emt 0:00:06]} c5 {[%emt 0:00:12]} 10. Bf4 {[%emt 0:00:11]} cxd4 {[%emt 0:00:37]} 11. cxd4 {[%emt 0:00:08]} Rc8 {[%emt 0:00:03]} 12. Qb3 {[%emt 0:00:26]} h6 {[%emt 0:13:13]} 13. Bb5 {[%emt 0:08:13]} a6 {[%emt 0:02:05]} 14. Bd3 {[%emt 0:10:23]} g5 {[%emt 0:00:38]} 15. Bg3 {[%emt 0:09:31]} Bg7 {[%emt 0:01:47]} 16. Bd6 {[%emt 0:12:31]} Nf6 {[%emt 0:28:42]} 17. e5 {[%emt 0:06:17]} Ne4 {[%emt 0:00:29]} 18. Bxe4 {[%emt 0:04:19]} Bxe4 {[%emt 0:00:06]} 19. O-O {[%emt 0:03:07]} Bf8 {[%emt 0:04:05]} 20. Nd2 {[%emt 0:12:33]} Bc6 {[%emt 0:09:58]} 21. Qg3 {[%emt 0:02:47]} Bd5 {[%emt 0:08:46]} 22. Rac1 {[%emt 0:03:53]} f5 {[%emt 0:01:36]} 23. Qd3 {[%emt 0:05:15]} Bxd6 {[%emt 0:05:04]} 24. exd6 {[%emt 0:01:12]} O-O {[%emt 0:00:21]} 25. Rxc8 {[%emt 0:04:03]} Qxc8 {[%emt 0:00:07]} 26. Qe3 {[%emt 0:00:36]} Qc6 {[%emt 0:05:16]} 27. Qe5 {[%emt 0:03:16]} Kf7 {[%emt 0:00:07]} 28. Nf3 {[%emt 0:04:14]} Rd8 {[%emt 0:03:15]} 29. Qe3 {[%emt 0:01:53]} Bxf3 {[%emt 0:00:40]} 30. Rc1 {[%emt 0:01:03]} Qe4 {[%emt 0:06:13]} 31. Qc3 {[%emt 0:02:58]} Qg4 {[%emt 0:00:10]} 32. g3 {[%emt 0:01:35]} Kg6 {[%emt 0:05:05]} 33. Re1 {[%emt 0:01:58]} Bd5 {[%emt 0:00:29]} 34. f3 {[%emt 0:06:58]} Qxf3 {[%emt 0:00:53]} 35. Rxe6+ {[%emt 0:00:12]} Kh5 {[%emt 0:00:01]} 36. Qxf3+ {[%emt 0:00:58]} Bxf3 {[%emt 0:00:07]} 37. Kf2 {[%emt 0:00:24]} g4 {[%emt 0:01:42]} 38. h4 {[%emt 0:00:16]} Bc6 {[%emt 0:01:18]} 39. Rf6 {[%emt 0:00:25]} Bd7 {[%emt 0:01:07]} 40. Ke3 {[%emt 0:02:23]} Re8+ {[%emt 0:00:14]} 41. Kf2 {[%emt 0:50:05]} Re6 {[%emt 0:05:46] Ke1} 0-1